bitfinex/quotes_SOLUSD_20241007
["timestamp","ask_amount","ask_price","bid_price","bid_amount"]
[1728291140213,6.7183,148.85,148.81,6.7199]
[1728291140424,6.7178,148.86,148.81,21.28569279]
[1728291140725,6.7178,148.86,148.82,10.44140619]
[1728291140925,6.7178,148.86,148.82,6.7194]
[1728291143513,6.7195,148.82,148.78,6.7211]
[1728291143714,6.7191,148.83,148.78,6.7211]
[1728291144315,6.7191,148.83,148.79,3.72472657]
[1728291144512,6.7191,148.83,148.78,6.7211]
[1728291144712,6.7195,148.82,148.77,23.5258]
[1728291144931,6.7195,148.82,148.78,3.72585127]
[1728291145137,6.7195,148.82,148.77,23.5258]
[1728291145330,6.7195,148.82,148.78,3.72586657]
[1728291145516,6.7195,148.82,148.79,3.72586657]
[1728291145837,6.7195,148.82,148.78,6.7213]
[1728291146011,6.7195,148.82,148.79,3.72582419]
[1728291146242,6.7195,148.82,148.78,6.7213]
[1728291146646,6.7195,148.82,148.79,3.72607239]
[1728291147022,6.7195,148.82,148.78,6.7213]
[1728291147221,6.7195,148.82,148.79,3.72607143]
[1728291147424,6.7195,148.82,148.78,6.7213]
[1728291147731,6.7195,148.82,148.79,3.7263943]
[1728291147928,6.7195,148.82,148.78,6.7213]
[1728291148241,6.7195,148.82,148.79,3.72639377]
[1728291148430,6.7195,148.82,148.78,6.7213]
[1728291148744,6.7195,148.82,148.79,3.72679977]
[1728291149030,6.7195,148.82,148.78,6.7213]
[1728291149246,6.7195,148.82,148.79,3.7268003]
[1728291149425,6.7195,148.82,148.78,6.7213]
[1728291149627,6.7195,148.82,148.79,3.72730414]
[1728291149948,6.7195,148.82,148.78,6.7213]
[1728291150139,6.7195,148.82,148.79,3.72730405]
[1728291150330,6.7195,148.82,148.78,6.7213]
[1728291150644,6.7195,148.82,148.79,3.72731817]
[1728291150824,6.7195,148.82,148.78,6.7213]
[1728291151030,6.72,148.81,148.79,3.72731773]
[1728291151219,6.72,148.81,148.77,23.5257]
[1728291151426,6.7196,148.82,148.78,3.72718781]
[1728291151627,6.7196,148.82,148.79,3.72718781]
[1728291151847,6.7196,148.82,148.77,23.5257]
[1728291151848,16.7959,148.85,148.77,23.5257]
[1728291152047,6.72,148.81,148.78,3.72719098]
[1728291152229,6.72,148.81,148.79,3.72719098]
[1728291152431,6.72,148.81,148.77,23.5257]
[1728291152629,6.72,148.81,148.78,3.72691601]
[1728291152942,6.72,148.81,148.79,3.72691601]
[1728291153124,6.72,148.81,148.77,23.5257]
[1728291153319,6.72,148.81,148.78,3.72680738]
[1728291153524,6.72,148.81,148.79,3.72680738]
[1728291153753,6.72,148.81,148.77,23.5257]
[1728291153923,6.72,148.81,148.78,3.72680738]
[1728291154125,6.72,148.81,148.79,3.72680738]
[1728291154356,6.72,148.81,148.77,23.5257]
[1728291154541,6.72,148.81,148.78,3.72663568]
[1728291154737,6.72,148.81,148.79,3.72663568]
[1728291155051,6.72,148.81,148.77,23.5257]
[1728291155351,6.72,148.81,148.78,3.72663092]
[1728291155532,6.7196,148.82,148.79,3.72663092]
[1728291155730,6.7196,148.82,148.77,23.5257]
[1728291155931,6.7196,148.82,148.78,3.72639703]
[1728291156149,6.7196,148.82,148.79,3.72639703]
[1728291156340,6.7196,148.82,148.77,23.5257]
[1728291156541,6.7196,148.82,148.78,3.72623343]
[1728291156737,6.7196,148.82,148.77,23.5257]
[1728291156941,6.7196,148.82,148.79,3.7262329]
[1728291157253,6.7196,148.82,148.77,23.5257]
[1728291157630,6.7196,148.82,148.78,3.72618027]
[1728291157828,20.0,148.86,148.79,35.09377306]
[1728291158032,21.67974627,148.86,148.8,10.44628037]
[1728291158493,6.7182,148.85,148.81,6.7198]
[1728291159854,21.5799,148.91,148.8,14.56579279]
[1728291160046,6.7159,148.9,148.85,21.28379279]
[1728291160362,22.114,148.91,148.86,6.7176]
[1728291160857,6.7155,148.91,148.87,6.7172]
[1728291164066,6.7151,148.92,148.87,6.7172]
[1728291164248,6.7151,148.92,148.87,14.69128279]
[1728291164450,6.7145,148.93,148.88,6.7166]
[1728291167970,6.7142,148.94,148.89,6.7162]
[1728291168671,6.7142,148.94,148.9,6.7159]
[1728291169060,6.7137,148.95,148.9,6.7159]
[1728291169662,8.39281425,148.94,148.9,6.7159]
[1728291169864,6.7142,148.94,148.9,6.7159]
[1728291173361,6.7145,148.93,148.89,23.5065]
[1728291173555,6.7142,148.94,148.89,23.5065]
[1728291174071,26.7134,148.96,148.91,6.7153]
[1728291174974,26.7134,148.96,148.89,31.35599279]
[1728291174975,8.39223057,148.95,148.9,6.7158]
[1728291175182,6.7137,148.95,148.9,0.12549]
[1728291175362,6.7137,148.95,148.91,6.7153]
[1728291177987,6.7132,148.96,148.92,6.715]
[1728291178487,6.7128,148.97,148.92,6.715]
[1728291179566,6.7133,148.96,148.92,6.715]
[1728291180194,6.7133,148.96,148.91,23.5034]
[1728291180367,23.776884,148.97,148.88,52.96539279]
[1728291180574,6.7146,148.93,148.89,6.7162]
[1728291181781,6.7146,148.93,148.88,59.68199279]
[1728291185693,6.7146,148.93,148.89,6.7161]
[1728291191577,6.7146,148.93,148.88,59.68199279]
[1728291194881,6.7146,148.93,148.89,6.7163]
[1728291195285,6.7146,148.93,148.88,45.1162]
[1728291195497,6.7146,148.93,148.89,6.7163]
[1728291199208,6.7137,148.95,148.9,6.7155]
[1728291199385,6.7142,148.94,148.9,6.7155]
[1728291200900,6.7142,148.94,148.89,0.12549]
[1728291201107,6.7142,148.94,148.89,6.84169]
[1728291201278,1.67861697,148.95,148.89,6.84169]
[1728291201605,6.7146,148.93,148.89,6.84169]
[1728291205411,6.7146,148.93,148.89,6.7162]
[1728291206611,6.715,148.92,148.88,45.1162]
[1728291206812,6.715,148.92,148.89,3.72541768]
[1728291206991,6.715,148.92,148.88,45.1162]
[1728291207315,6.715,148.92,148.89,3.72541768]
[1728291207607,6.715,148.92,148.9,3.72598213]
[1728291207806,6.715,148.92,148.88,45.1162]
[1728291207996,6.7145,148.94,148.89,10.44220243]
[1728291208202,6.7146,148.93,148.9,3.72600243]
[1728291208422,6.7146,148.93,148.89,6.7162]
[1728291208718,6.7146,148.93,148.9,3.72653987]
[1728291208915,6.7146,148.93,148.89,6.7162]
[1728291209106,6.7146,148.93,148.9,3.72652062]
[1728291209307,6.7146,148.93,148.89,6.7162]
[1728291209715,6.7146,148.93,148.9,3.72706698]
[1728291209903,6.7146,148.93,148.89,6.7162]
[1728291210212,6.715,148.92,148.9,3.72714611]
[1728291210417,6.715,148.92,148.88,23.5081]
[1728291210595,1.67879159,148.91,148.89,3.72759247]
[1728291210915,1.67879159,148.91,148.85,16.7945]
[1728291210916,6.7168,148.89,148.85,16.7945]
[1728291211112,6.7168,148.89,148.86,3.72822839]
[1728291211299,6.7168,148.89,148.87,3.72822839]
[1728291211490,6.7168,148.89,148.85,23.5125]
[1728291211690,6.7168,148.89,148.86,3.72694381]
[1728291212017,6.7168,148.89,148.87,3.72694381]
[1728291212209,6.7168,148.89,148.85,23.5125]
[1728291212401,6.7168,148.89,148.86,3.72588941]
[1728291212712,6.7168,148.89,148.85,23.5125]
[1728291212916,6.7168,148.89,148.86,3.72588941]
[1728291213219,6.7168,148.89,148.85,23.5125]
[1728291213399,6.7168,148.89,148.86,3.72498955]
[1728291213597,6.7168,148.89,148.85,23.5125]
[1728291213919,6.7168,148.89,148.86,3.72495836]
[1728291214216,6.7168,148.89,148.85,23.5125]
[1728291214518,6.7168,148.89,148.86,3.72410509]
[1728291214702,6.7168,148.89,148.85,23.5125]
[1728291214905,6.7168,148.89,148.86,3.72410562]
[1728291215309,6.7168,148.89,148.85,23.5125]
[1728291215506,6.7168,148.89,148.86,3.72336006]
[1728291215695,6.7168,148.89,148.85,23.5125]
[1728291215897,6.7168,148.89,148.86,3.72336006]
[1728291216219,6.7168,148.89,148.85,23.5125]
[1728291216415,6.7168,148.89,148.85,16.7945]
[1728291217705,6.7168,148.89,148.86,3.72269872]
[1728291220322,1.6791172,148.92,148.86,3.72269872]
[1728291220323,6.7172,148.87,148.86,3.72269872]
[1728291226520,26.7172,148.87,148.86,3.72269872]
[1728291226994,20.0,148.87,148.81,3.71826772]
[1728291227201,6.7188,148.84,148.79,23.5222]
[1728291227422,6.7188,148.84,148.8,3.71826944]
[1728291230314,1.67980188,148.86,148.8,3.71826944]
[1728291230621,6.719,148.83,148.8,3.71826944]
[1728291232023,6.7189,148.84,148.8,3.71826944]
[1728291232430,6.7189,148.84,148.8,10.43846944]
[1728291235206,6.7189,148.84,148.8,3.71826944]
[1728291235630,6.7195,148.82,148.8,3.71826944]
[1728291235830,6.7199,148.81,148.8,3.71826944]
[1728291237310,6.7199,148.81,148.76,23.5268]
[1728291237934,16.797,148.84,148.76,16.8047]
[1728291238103,6.7198,148.82,148.77,6.7213]
[1728291238513,20.0,148.83,148.77,6.7213]
[1728291238732,6.72,148.81,148.77,6.7213]
[1728291240936,6.7187,148.84,148.8,6.7203]
[1728291241234,6.7191,148.83,148.79,6.7208]
[1728291241917,6.7191,148.83,148.78,23.524]
[1728291243138,6.7191,148.83,148.79,6.7208]
[1728291244740,6.7196,148.82,148.78,16.803]
[1728291245436,6.72,148.81,148.77,6.7217]
[1728291249147,6.7204,148.8,148.75,16.8061]
[1728291250149,6.7204,148.8,148.75,23.5287]
[1728291253928,6.72,148.81,148.76,21.28799279]
[1728291254658,6.72,148.81,148.77,6.7217]
[1728291257146,6.72,148.81,148.75,16.8061]
[1728291257454,6.7205,148.8,148.76,6.7221]
[1728291260841,6.7198,148.82,148.77,6.7214]
[1728291265260,6.7198,148.82,148.76,24.027864]
[1728291265464,6.7198,148.82,148.78,6.7212]
[1728291266572,1.67995204,148.84,148.77,16.8037]
[1728291266745,6.7203,148.81,148.77,16.8037]
[1728291267564,6.7204,148.8,148.76,6.84749]
[1728291267869,6.7204,148.8,148.76,6.722]
[1728291269244,1.68022558,148.83,148.75,6.7225]
[1728291269567,43.776884,148.82,148.74,16.8073]
[1728291269772,6.7221,148.77,148.72,6.7239]
[1728291270647,6.7227,148.75,148.71,23.535]
[1728291272271,6.7227,148.75,148.71,16.8106]
[1728291273653,15.9613,148.78,148.72,6.7239]
[1728291274074,15.0093,148.83,148.73,16.8085]
[1728291274277,6.7201,148.81,148.76,21.28759279]
[1728291274450,6.7201,148.81,148.77,6.7216]
[1728291275850,6.7204,148.8,148.75,38.09409279]
[1728291276055,6.7204,148.8,148.75,23.5283]
[1728291276572,6.7216,148.78,148.73,6.7232]
[1728291276777,6.7216,148.78,148.74,6.7231]
[1728291289379,38.81141241,148.83,148.72,31.37559279]
[1728291289380,38.81141241,148.83,148.75,0.12549]
[1728291289689,6.7209,148.79,148.75,6.7226]
[1728291292380,6.7204,148.8,148.76,6.7221]
[1728291295161,21.680245,148.82,148.74,16.93289]
[1728291295355,6.7216,148.78,148.74,23.65589]
[1728291296887,6.7216,148.78,148.75,3.71731467]
[1728291297081,6.7216,148.78,148.74,23.5304]
[1728291297280,6.7218,148.77,148.74,16.8074]
[1728291299292,6.7218,148.77,148.73,6.7235]
[1728291299494,6.7222,148.76,148.72,0.12549]
[1728291299677,6.7227,148.75,148.73,3.7176566]
[1728291299880,6.7227,148.75,148.72,0.12549]
[1728291300065,6.7227,148.75,148.73,3.71768025]
[1728291300265,6.7227,148.75,148.72,0.12549]
[1728291300596,6.7223,148.76,148.73,3.71767978]
[1728291300794,6.7223,148.76,148.72,0.12549]
[1728291300997,6.7223,148.76,148.73,3.71768242]
[1728291301198,6.7223,148.76,148.71,23.5345]
[1728291301501,6.7223,148.76,148.72,3.71768242]
[1728291301669,6.7223,148.76,148.72,3.71748236]
[1728291301869,1.68066327,148.77,148.71,23.5345]
[1728291302076,15.0714,148.78,148.71,16.8104]
[1728291302283,6.7227,148.75,148.71,16.8104]
[1728291303075,6.7227,148.75,148.71,23.5345]
[1728291303279,6.7223,148.76,148.72,10.44055764]
[1728291303484,6.7213,148.78,148.74,6.7231]
[1728291303877,6.7213,148.78,148.74,21.28889279]
[1728291304084,52.9076,148.82,148.75,10.43847831]
[1728291304085,32.9076,148.82,148.75,10.43847831]
[1728291304401,6.7209,148.79,148.75,6.7226]
[1728291309705,16.1081,148.82,148.74,14.56579279]
[1728291309874,6.7203,148.81,148.76,6.7219]
[1728291310275,6.7203,148.81,148.77,6.7217]
[1728291313204,6.7196,148.82,148.77,6.7217]
[1728291316698,6.7196,148.82,148.78,6.7212]
[1728291321874,6.7199,148.81,148.77,23.5257]
[1728291322187,6.7205,148.8,148.76,0.12549]
[1728291322379,6.7205,148.8,148.77,3.71642353]
[1728291322580,21.67990786,148.84,148.75,6.84779]
[1728291322785,6.7209,148.79,148.76,3.7166873]
[1728291323106,6.7209,148.79,148.75,6.84779]
[1728291323305,6.7205,148.8,148.76,3.71676166]
[1728291323512,6.7205,148.8,148.75,6.84779]
[1728291323701,6.7205,148.8,148.76,3.7167549]
[1728291324004,6.7205,148.8,148.75,6.84779]
[1728291324197,6.7205,148.8,148.76,3.71657189]
[1728291324417,6.7205,148.8,148.76,6.7222]
[1728291330099,6.7205,148.8,148.77,3.71647044]
[1728291330298,6.7205,148.8,148.76,6.7222]
[1728291330608,6.7205,148.8,148.77,3.71648771]
[1728291330806,6.7205,148.8,148.76,6.7222]
[1728291332326,6.7205,148.8,148.77,3.71653543]
[1728291332526,6.7205,148.8,148.76,6.7222]
[1728291333825,6.7205,148.8,148.77,3.71656109]
[1728291334008,6.7205,148.8,148.76,6.7222]
[1728291336030,6.7209,148.79,148.75,6.84809]
[1728291336211,6.7209,148.79,148.76,3.71702475]
[1728291336398,6.7209,148.79,148.75,6.84809]
[1728291336603,6.7209,148.79,148.76,3.71702422]
[1728291336799,6.7209,148.79,148.75,6.84809]
[1728291337036,6.7209,148.79,148.76,3.71698472]
[1728291337324,6.7209,148.79,148.75,6.84809]
[1728291337622,6.7205,148.8,148.76,3.71703886]
[1728291337798,6.7205,148.8,148.76,6.7222]
[1728291338506,6.7202,148.81,148.77,0.12549]
[1728291338693,23.79942743,148.85,148.78,21.28699279]
[1728291338895,16.7961,148.85,148.78,21.28699279]
[1728291340115,6.7195,148.82,148.78,21.28699279]
[1728291343709,6.7195,148.82,148.78,6.7212]
[1728291353113,6.72,148.81,148.77,6.7214]
[1728291353321,6.72,148.81,148.78,3.72328574]
[1728291353619,6.72,148.81,148.77,6.7214]
[1728291353813,6.72,148.81,148.78,3.7232868]
[1728291354013,6.72,148.81,148.77,6.7214]
[1728291354324,6.72,148.81,148.78,3.72361577]
[1728291354525,6.72,148.81,148.77,6.7214]
[1728291354725,6.72,148.81,148.78,3.72361577]
[1728291354926,6.72,148.81,148.77,6.7214]
[1728291355124,6.72,148.81,148.78,3.72365858]
[1728291355340,6.7209,148.79,148.76,16.8047]
[1728291355519,6.7216,148.78,148.74,29.0877]
[1728291357548,6.7216,148.78,148.75,3.72380901]
[1728291357746,6.7216,148.78,148.76,3.72380901]
[1728291357927,6.7216,148.78,148.74,29.0877]
[1728291358125,32.4252,148.83,148.76,6.722]
[1728291358126,6.7208,148.8,148.76,6.722]
[1728291358357,6.7208,148.8,148.77,3.72383439]
[1728291358644,20.0,148.85,148.77,3.72383439]
[1728291358840,6.7196,148.82,148.78,10.44493439]
[1728291359041,6.7196,148.82,148.78,6.7211]
[1728291359341,6.7196,148.82,148.77,31.36979279]
[1728291359550,6.7196,148.82,148.78,3.72322597]
[1728291359723,6.7196,148.82,148.77,23.5256]
[1728291360048,6.7196,148.82,148.78,3.72322174]
[1728291360338,6.7196,148.82,148.77,23.5256]
[1728291360546,6.7196,148.82,148.78,3.72325413]
[1728291360721,6.7196,148.82,148.77,23.5256]
[1728291361036,6.7196,148.82,148.78,3.72323405]
[1728291361347,6.7196,148.82,148.77,23.5256]
[1728291361529,6.7196,148.82,148.78,3.723264]
[1728291361732,6.7196,148.82,148.77,23.5256]
[1728291361950,6.7196,148.82,148.78,3.72336413]
[1728291362128,6.72,148.81,148.77,23.5256]
[1728291362326,6.72,148.81,148.78,3.72337979]
[1728291362528,6.72,148.81,148.77,23.5256]
[1728291362817,6.72,148.81,148.78,3.72337556]
[1728291363019,6.7204,148.8,148.77,16.804]
[1728291363218,6.7204,148.8,148.78,3.72350983]
[1728291363447,6.7204,148.8,148.77,16.804]
[1728291363644,6.7204,148.8,148.78,3.72352255]
[1728291363847,6.7204,148.8,148.77,16.804]
[1728291364145,6.7208,148.79,148.78,3.72352625]
[1728291364343,6.7208,148.79,148.74,45.8948]
[1728291364644,6.7208,148.79,148.75,3.72354731]
[1728291364843,6.7214,148.78,148.76,3.72354731]
[1728291365049,6.7214,148.78,148.74,39.1718]
[1728291365248,6.7214,148.78,148.75,3.72365117]
[1728291365427,6.7214,148.78,148.76,3.72365117]
[1728291365753,6.7214,148.78,148.74,39.1718]
[1728291365949,6.7214,148.78,148.75,3.72336565]
[1728291366148,6.7214,148.78,148.76,3.72336565]
[1728291366346,6.7214,148.78,148.74,39.1718]
[1728291366527,21.68032071,148.81,148.75,3.72296275]
[1728291366728,21.68032071,148.81,148.74,16.2579]
[1728291366928,6.7222,148.76,148.75,3.72317411]
[1728291367652,6.7222,148.76,148.72,6.7239]
[1728291367827,6.7222,148.76,148.75,3.72241065]
[1728291368354,6.7222,148.76,148.73,0.12549]
[1728291368532,6.7222,148.76,148.74,3.72165046]
[1728291368729,6.7222,148.76,148.73,0.12549]
[1728291368927,6.7222,148.76,148.74,3.72164999]
[1728291369228,6.7222,148.76,148.73,0.12549]
[1728291369429,6.7222,148.76,148.74,3.72101056]
[1728291369728,6.7222,148.76,148.73,0.12549]
[1728291369928,6.7222,148.76,148.74,3.72101056]
[1728291370128,6.7222,148.76,148.73,0.12549]
[1728291370360,6.7222,148.76,148.74,3.72048921]
[1728291370530,6.7222,148.76,148.72,6.7239]
[1728291370735,6.7222,148.76,148.73,3.7204888]
[1728291371039,6.7222,148.76,148.72,6.7239]
[1728291372766,1.68062112,148.75,148.7,28.1667]
[1728291372938,6.7231,148.74,148.71,3.71849997]
[1728291373257,6.7231,148.74,148.7,28.1667]
[1728291373430,6.7231,148.74,148.71,3.71737421]
[1728291373631,6.7231,148.74,148.7,28.1667]
[1728291373853,6.7231,148.74,148.71,3.71736961]
[1728291374058,6.7231,148.74,148.7,28.1667]
[1728291374242,6.7231,148.74,148.71,3.71726185]
[1728291375357,6.7231,148.74,148.7,28.1667]
[1728291378843,6.7228,148.75,148.7,28.1667]
[1728291382758,6.7232,148.74,148.7,28.1667]
[1728291388575,6.7232,148.74,148.7,21.9655]
[1728291391359,6.7232,148.74,148.7,6.7248]
[1728291392177,6.7232,148.74,148.7,10.43511417]
[1728291394370,6.7232,148.74,148.7,6.7248]
[1728291394575,6.7232,148.74,148.7,10.43573949]
[1728291395671,6.7232,148.74,148.7,6.7248]
[1728291395877,6.7232,148.74,148.7,10.43615843]
[1728291397958,6.7232,148.74,148.7,6.7248]
[1728291398257,6.7232,148.74,148.7,10.43709012]
[1728291398979,6.7235,148.73,148.7,3.71229012]
[1728291400283,6.7235,148.73,148.69,6.7252]
[1728291400484,6.7235,148.73,148.7,3.7142818]
[1728291400669,6.7235,148.73,148.69,6.7252]
[1728291400985,6.7241,148.72,148.7,3.71426176]
[1728291401283,6.7248,148.71,148.67,6.7261]
[1728291401456,6.7249,148.7,148.69,3.71511614]
[1728291401658,6.7249,148.7,148.68,3.71511614]
[1728291402487,8.40671057,148.69,148.68,3.71511614]
[1728291402783,6.7254,148.69,148.68,3.71511614]
[1728291403467,6.7254,148.69,148.65,3.71511614]
[1728291403671,6.7254,148.69,148.66,3.71511614]
[1728291403874,6.7254,148.69,148.65,3.71511614]
[1728291404063,6.7254,148.69,148.66,3.71511614]
[1728291404280,6.7254,148.69,148.65,3.71511614]
[1728291404686,6.7254,148.69,148.66,3.71405896]
[1728291404887,6.7254,148.69,148.65,3.71405896]
[1728291405057,6.7254,148.69,148.66,3.71405896]
[1728291405262,6.7254,148.69,148.65,3.71405896]
[1728291405471,6.7254,148.69,148.66,3.71405896]
[1728291405785,6.7254,148.69,148.65,10.44115896]
[1728291405990,6.725,148.7,148.66,25.00635175]
[1728291406213,6.725,148.7,148.67,3.71405896]
[1728291406699,6.7254,148.69,148.66,3.71405896]
[1728291407570,6.7254,148.69,148.65,3.71405896]
[1728291407774,6.7263,148.67,148.65,3.71405896]
[1728291407977,6.7263,148.67,148.66,3.71417322]
[1728291408180,6.7263,148.67,148.62,10.44257322]
[1728291408372,6.7267,148.66,148.63,3.71417322]
[1728291408586,6.7267,148.66,148.64,3.71417322]
[1728291408768,6.7267,148.66,148.62,6.7284]
[1728291408769,6.7267,148.66,148.65,3.71417322]
[1728291408970,6.7267,148.66,148.63,3.71417322]
[1728291409169,6.7267,148.66,148.64,3.71417322]
[1728291409479,35.0558,148.69,148.62,3.71417322]
[1728291409678,6.7272,148.65,148.63,3.71417322]
[1728291409897,6.7272,148.65,148.64,3.71417322]
[1728291410078,6.7272,148.65,148.61,23.6506]
[1728291410079,6.7272,148.65,148.62,3.71417322]
[1728291410385,6.7272,148.65,148.63,3.71417322]
[1728291410690,6.7272,148.65,148.62,3.71417322]
[1728291410892,6.7272,148.65,148.63,3.71417322]
[1728291411198,6.7272,148.65,148.61,16.922]
[1728291411199,6.7272,148.65,148.62,3.71417322]
[1728291411379,6.7272,148.65,148.63,3.71417322]
[1728291411695,6.7272,148.65,148.62,3.71417322]
[1728291411888,6.7277,148.64,148.62,3.71417322]
[1728291412268,6.7277,148.64,148.61,20.63617322]
[1728291412588,6.7277,148.64,148.61,3.81417322]
[1728291414292,6.7273,148.65,148.61,0.1]
[1728291417884,6.7268,148.66,148.61,6.8286]
[1728291418493,6.7268,148.66,148.61,10.53742432]
[1728291418696,6.7268,148.66,148.61,3.80882432]
[1728291418888,6.7268,148.66,148.62,6.7285]
[1728291421880,6.7268,148.66,148.61,10.53762432]
[1728291422394,6.7272,148.65,148.61,10.53762432]
[1728291423787,6.7272,148.65,148.61,10.53534746]
[1728291424177,6.7272,148.65,148.61,6.8288]
[1728291424492,23.776884,148.67,148.61,0.1]
[1728291424677,6.7277,148.64,148.61,0.1]
[1728291425287,6.7284,148.63,148.61,0.1]
[1728291426175,6.7269,148.66,148.61,6.8286]
[1728291426381,15.0558,148.69,148.62,14.56579279]
[1728291426586,6.7264,148.67,148.63,6.728]
[1728291427803,6.726,148.68,148.64,6.7275]
[1728291430112,1.68159219,148.67,148.61,0.1]
[1728291430317,6.7279,148.64,148.61,3.80532285]
[1728291430613,6.7281,148.63,148.61,0.1]
[1728291430796,6.7277,148.64,148.61,0.1]
[1728291432593,6.7285,148.62,148.61,0.1]
[1728291437903,8.41086315,148.62,148.61,0.1]
[1728291439517,6.7285,148.62,148.61,0.1]
[1728291441540,28.41093293,148.62,148.61,0.1]
[1728291442045,26.7285,148.62,148.61,0.1]
[1728291445236,6.7285,148.62,148.61,0.1]
[1728291452010,6.99781815,148.67,148.61,0.1]
[1728291452208,6.7279,148.64,148.61,0.1]
[1728291456329,6.7282,148.63,148.61,0.1]
[1728291459942,1.68205929,148.66,148.61,0.1]
[1728291460251,6.7285,148.62,148.61,0.1]
[1728291463552,26.7285,148.62,148.61,0.1]
[1728291469443,24.98657853,148.66,148.61,0.1]
[1728291469766,6.7284,148.63,148.61,0.1]
[1728291473786,6.7285,148.62,148.61,0.1]
[1728291474264,6.7281,148.63,148.61,0.1]
[1728291474466,20.0,148.65,148.61,0.1]
[1728291474768,6.7281,148.63,148.61,0.1]
[1728291475336,6.7285,148.62,148.61,0.1]
[1728291485676,6.7284,148.63,148.61,0.1]
[1728291485858,6.7277,148.64,148.61,0.1]
[1728291486375,20.0,148.65,148.61,0.1]
[1728291486554,6.7283,148.63,148.61,0.1]
[1728291487084,6.7285,148.62,148.61,0.1]
[1728291494984,6.7285,148.62,148.61,0.1]
[1728291500989,6.7282,148.63,148.61,0.1]
[1728291501987,6.7285,148.62,148.61,0.1]
[1728291515288,6.7285,148.62,148.61,3.82955179]
[1728291515899,6.7285,148.62,148.61,0.1]
[1728291525913,6.7282,148.63,148.61,0.1]
[1728291527323,20.0,148.65,148.61,0.1]
[1728291527490,6.7278,148.64,148.61,0.1]
[1728291527815,6.7275,148.65,148.61,0.1]
[1728291529504,6.7277,148.64,148.61,0.1]
[1728291530404,6.7284,148.63,148.61,0.1]
[1728291545532,6.7285,148.62,148.61,0.1]
[1728291545704,6.7285,148.62,148.61,3.82840548]
[1728291550332,6.7273,148.65,148.61,10.55740548]
[1728291550525,6.7273,148.65,148.61,21.39479279]
[1728291550906,6.7273,148.65,148.62,3.72787511]
[1728291551103,6.726,148.68,148.64,14.69128279]
[1728291551413,6.7254,148.69,148.65,25.02004556]
[1728291551610,6.7254,148.69,148.66,14.56579279]
[1728291554919,6.7249,148.71,148.66,21.29249279]
[1728291555224,6.7254,148.69,148.66,14.56579279]
[1728291559141,6.7254,148.69,148.65,43.30359279]
[1728291559443,6.7254,148.69,148.65,36.57649279]
[1728291559613,1.68140951,148.68,148.61,22.7122]
[1728291559814,6.7273,148.65,148.61,33.15234448]
[1728291560043,6.7273,148.65,148.61,29.4408]
[1728291561422,1.68140951,148.68,148.61,22.7122]
[1728291561624,6.7277,148.64,148.61,22.7122]
[1728291563522,6.7273,148.65,148.61,22.7122]
[1728291563871,6.7273,148.65,148.61,44.00689279]
[1728291564214,16.8139,148.69,148.62,21.29429279]
[1728291564549,6.7264,148.67,148.63,14.56579279]
[1728291566244,20.0,148.68,148.63,14.56579279]
[1728291566438,6.7259,148.68,148.65,14.56579279]
[1728291568552,6.7259,148.68,148.64,6.7275]
[1728291571530,20.0,148.71,148.65,14.56579279]
[1728291571857,6.7255,148.69,148.65,21.29259279]
[1728291572046,6.7255,148.69,148.65,6.7268]
[1728291573754,6.7255,148.69,148.64,23.5462]
[1728291573933,1.68148598,148.7,148.64,16.8187]
[1728291574136,6.7259,148.68,148.64,16.8187]
[1728291580560,6.7259,148.68,148.64,23.5463]
[1728291586337,6.7259,148.68,148.64,16.8187]
[1728291587064,1.68152793,148.7,148.64,16.8187]
[1728291587239,1.68152793,148.7,148.61,22.7122]